fUSD/lending_fUSD_20250414
["ID","MTS","AMOUNT","RATE_DAILY","PERIOD"]
[357963729,1744623041147,-500.0,0.00019178,2]
[357963730,1744623041156,-500.0,0.00019178,2]
[357963731,1744623041166,-500.0,0.00019178,2]
[357963732,1744623041176,-500.0,0.00019178,2]
[357963733,1744623041186,-500.0,0.00019178,2]
[357963734,1744623041196,-150.0,0.00019178,2]
[357963735,1744623041205,-537.02,0.00019178,2]
[357963736,1744623041215,-150.0,0.00019178,2]
[357963737,1744623041225,-500.0,0.00019178,2]
[357963738,1744623041235,-249.78650629,0.00019178,2]
[357963739,1744623041246,-500.0,0.00019178,2]
[357963740,1744623041256,-524.14,0.00019178,2]
[357963741,1744623041265,-500.0,0.00019178,2]
[357963742,1744623041275,-433.9582706,0.00019178,2]
[357963743,1744623041285,-500.0,0.00019178,2]
[357963744,1744623041296,-500.0,0.00019178,2]
[357963745,1744623041306,-500.0,0.00019178,2]
[357963746,1744623041315,-500.0,0.00019178,2]
[357963747,1744623041325,-614.59,0.00019178,2]
[357963748,1744623041335,-500.0,0.00019178,2]
[357963749,1744623041345,-500.0,0.00019178,2]
[357963750,1744623041355,-500.0,0.00019178,2]
[357963751,1744623041365,-500.0,0.00019178,2]
[357963752,1744623041375,-500.0,0.00019178,2]
[357963753,1744623041385,-500.0,0.00019178,2]
[357963754,1744623041394,-500.0,0.00019178,2]
[357963755,1744623041404,-500.0,0.00019178,2]
[357963756,1744623041414,-500.0,0.00019178,2]
[357963757,1744623041424,-500.0,0.00019178,2]
[357963758,1744623041434,-500.0,0.00019178,2]
[357963759,1744623041444,-500.0,0.00019178,2]
[357963760,1744623041453,-500.0,0.00019178,2]
[357963761,1744623041464,-500.0,0.00019178,2]
[357963762,1744623041474,-500.0,0.00019178,2]
[357963763,1744623041484,-500.0,0.00019178,2]
[357963764,1744623041494,-500.0,0.00019178,2]
[357963765,1744623041505,-500.0,0.00019178,2]
[357963766,1744623041515,-538.7290083,0.00019178,2]
[357963767,1744623041526,-500.0,0.00019178,2]
[357963768,1744623041536,-490.0,0.00019178,2]
[357963769,1744623041547,-500.0,0.00019178,2]
[357963770,1744623041557,-500.0,0.00019178,2]
[357963771,1744623041567,-500.0,0.00019178,2]
[357963772,1744623041577,-500.0,0.00019178,2]
[357963773,1744623041587,-500.0,0.00019178,2]
[357963774,1744623041596,-507.01884421,0.00019178,2]
[357963775,1744623041606,-500.0,0.00019178,2]
[357963776,1744623041615,-500.0,0.00019178,2]
[357963777,1744623041623,-627.07,0.00019178,2]
[357963778,1744623041632,-622.38005136,0.00019178,2]
[357963779,1744623041641,-500.0,0.00019178,2]
[357963780,1744623041650,-151.0,0.00019178,2]
[357963781,1744623041659,-500.0,0.00019178,2]
[357963782,1744623041668,-500.0,0.00019178,2]
[357963783,1744623041683,-202.05610177,0.00019178,2]
[357963784,1744623041693,-500.0,0.00019178,2]
[357963785,1744623041702,-500.0,0.00019178,2]
[357963786,1744623041712,-500.0,0.00019178,2]
[357963787,1744623041722,-500.0,0.00019178,2]
[357963788,1744623041731,-500.0,0.00019178,2]
[357963789,1744623041742,-500.0,0.00019178,2]
[357963790,1744623041751,-500.0,0.00019178,2]
[357963791,1744623041762,-500.0,0.00019178,2]
[357963792,1744623041772,-500.0,0.00019178,2]
[357963793,1744623041783,-500.0,0.00019178,2]
[357963794,1744623041792,-500.0,0.00019178,2]
[357963795,1744623041802,-500.0,0.00019178,2]
[357963796,1744623041812,-500.0,0.00019178,2]
[357963797,1744623041822,-500.0,0.00019178,2]
[357963798,1744623041832,-803.49,0.00019178,2]
[357963799,1744623041842,-500.0,0.00019178,2]
[357963800,1744623041851,-399.7,0.00019178,2]
[357963801,1744623041861,-508.95217236,0.00019178,2]
[357963802,1744623041872,-500.0,0.00019178,2]
[357963803,1744623041882,-500.0,0.00019178,2]
[357963804,1744623041893,-500.0,0.00019178,2]
[357963805,1744623041903,-500.0,0.00019178,2]
[357963806,1744623041913,-236.01,0.00019178,2]
[357963807,1744623041923,-500.0,0.00019178,2]
[357963808,1744623041933,-537.84263868,0.00019178,2]
[357963809,1744623041943,-500.0,0.00019178,2]
[357963810,1744623041953,-500.0,0.00019178,2]
[357963811,1744623041963,-500.0,0.00019178,2]
[357963812,1744623041973,-500.0,0.00019178,2]
[357963813,1744623041983,-500.0,0.00019178,2]
[357963814,1744623041993,-500.0,0.00019178,2]
[357963815,1744623042003,-500.0,0.00019178,2]
[357963816,1744623042013,-500.0,0.00019178,2]
[357963817,1744623042023,-500.0,0.00019178,2]
[357963818,1744623042033,-500.0,0.00019178,2]
[357963819,1744623042044,-512.86312731,0.00019178,2]
[357963820,1744623042053,-500.0,0.00019178,2]
[357963821,1744623042064,-500.0,0.00019178,2]
[357963822,1744623042077,-500.0,0.00019178,2]
[357963823,1744623042087,-500.0,0.00019178,2]
[357963824,1744623042097,-500.0,0.00019178,2]
[357963825,1744623042107,-500.0,0.00019178,2]
[357963826,1744623042119,-500.0,0.00019178,2]
[357963827,1744623042128,-500.0,0.00019178,2]
[357963828,1744623042139,-313.03835211,0.00019178,2]
[357963829,1744623042151,-584.464357,0.00019178,2]
[357963830,1744623042160,-500.0,0.00019178,2]
[357963831,1744623042170,-500.0,0.00019178,2]
[357963832,1744623042180,-500.0,0.00019178,2]
[357963833,1744623042189,-500.0,0.00019178,2]
[357963834,1744623042199,-500.0,0.00019178,2]
[357963835,1744623042208,-500.0,0.00019178,2]
[357963836,1744623042217,-172.93193658,0.00019178,2]
[357963837,1744623042227,-588.21515634,0.00019178,2]
[357963838,1744623042236,-500.0,0.00019178,2]
[357963839,1744623042245,-500.0,0.00019178,2]
[357963840,1744623042433,-500.0,0.00019178,2]
[357963841,1744623042442,-500.0,0.00019178,2]
[357963842,1744623042452,-568.08947205,0.00019178,2]
[357963843,1744623042460,-509.20915493,0.00019178,2]
[357963844,1744623042469,-500.0,0.00019178,2]
[357963845,1744623042482,-500.0,0.00019178,2]
[357963846,1744623042492,-182.57510806,0.00019178,2]
[357963847,1744623042501,-500.0,0.00019178,2]
[357963848,1744623042510,-500.0,0.00019178,2]
[357963849,1744623042520,-500.0,0.00019178,2]
[357963850,1744623042529,-500.0,0.00019178,2]
[357963851,1744623042539,-500.0,0.00019178,2]
[357963852,1744623042549,-504.23171124,0.00019178,2]
[357963853,1744623042559,-25.67482697,0.00019178,2]
[357963854,1744623042779,-741.62517303,0.00019178,2]
[357963855,1744623042792,-500.0,0.00019178,2]
[357963856,1744623042803,-500.0,0.00019178,2]
[357963858,1744623042813,-500.0,0.00019178,2]
[357963860,1744623042824,-500.0,0.00019178,2]
[357963862,1744623042835,-500.0,0.00019178,2]
[357963864,1744623042846,-500.0,0.00019178,2]
[357963865,1744623042856,-500.0,0.00019178,2]
[357963866,1744623042865,-500.0,0.00019178,2]
[357963867,1744623042874,-603.03690998,0.00019178,2]
[357963868,1744623042883,-500.0,0.00019178,2]
[357963869,1744623042892,-504.1633221,0.00019178,2]
[357963870,1744623042902,-500.0,0.00019178,2]
[357963871,1744623042910,-500.0,0.00019178,2]
[357963872,1744623042919,-500.0,0.00019178,2]
[357963873,1744623042927,-1204.64,0.00019178,2]
[357963874,1744623042935,-535.19663594,0.00019178,2]
[357963875,1744623042943,-507.15322763,0.00019178,2]
[357963876,1744623042952,-500.0,0.00019178,2]
[357963877,1744623042960,-527.03,0.00019178,2]
[357963878,1744623042969,-500.0,0.00019178,2]
[357963879,1744623042977,-500.0,0.00019178,2]
[357963880,1744623042986,-150.0,0.00019178,2]
[357963881,1744623042996,-500.0,0.00019178,2]
[357963882,1744623043005,-500.0,0.00019178,2]
[357963883,1744623043016,-500.0,0.00019178,2]
[357963884,1744623043026,-500.3464815,0.00019178,2]
[357963886,1744623043035,-500.0,0.00019178,2]
[357963887,1744623043047,-503.87147587,0.00019178,2]
[357963888,1744623043058,-500.0,0.00019178,2]
[357963889,1744623043070,-500.0,0.00019178,2]
[357963890,1744623043080,-513.89445482,0.00019178,2]
[357963891,1744623043090,-500.0,0.00019178,2]
[357963892,1744623043099,-500.0,0.00019178,2]
[357963893,1744623043110,-152.03546072,0.00019178,2]
[357963894,1744623043120,-500.0,0.00019178,2]
[357963895,1744623043130,-500.0,0.00019178,2]
[357963896,1744623043140,-500.0,0.00019178,2]
[357963897,1744623043151,-500.0,0.00019178,2]
[357963898,1744623043162,-503.83442561,0.00019178,2]
[357963899,1744623043172,-500.0,0.00019178,2]
[357963900,1744623043182,-500.0,0.00019178,2]
[357963901,1744623043191,-500.0,0.00019178,2]
[357963902,1744623043200,-500.0,0.00019178,2]
[357963903,1744623043210,-502.18362092,0.00019178,2]
[357963904,1744623043219,-500.0,0.00019178,2]
[357963905,1744623043228,-500.0,0.00019178,2]
[357963906,1744623043238,-500.0,0.00019178,2]
[357963907,1744623043248,-150.0,0.00019233,2]
[357963908,1744623043258,-200.0,0.00019233,2]
[357963909,1744623043267,-674.38278377,0.00019261,2]
[357963910,1744623043276,-150.0,0.00019288,2]
[357963911,1744623043286,-590.84,0.00019299,2]
[357963912,1744623043297,-150.99,0.00019339,2]
[357963913,1744623043306,-150.0,0.00019342,2]
[357963914,1744623043316,-990.55566109,0.00019352,2]
[357963915,1744623043326,-674.38278377,0.00019352,2]
[357963916,1744623043337,-248.9216775,0.00019397,2]
[357963917,1744623043347,-990.55566107,0.00019413,2]
[357963918,1744623043357,-674.38278377,0.00019443,2]
[357963919,1744623043367,-500.0,0.00019451,2]
[357963920,1744623043377,-500.0,0.00019451,2]
[357963921,1744623043386,-500.0,0.00019451,2]
[357963922,1744623043396,-500.0,0.00019451,2]
[357963923,1744623043406,-500.0,0.00019452,2]
[357963924,1744623043415,-500.0,0.00019452,2]
[357963925,1744623043425,-500.0,0.00019452,2]
[357963926,1744623043435,-500.0,0.00019452,2]
[357963927,1744623043445,-504.77405105,0.00019452,2]
[357963928,1744623043454,-500.0,0.00019452,2]
[357963929,1744623043464,-500.0,0.00019452,2]
[357963930,1744623043474,-500.0,0.00019452,2]
[357963931,1744623043483,-500.0,0.00019452,2]
[357963932,1744623043492,-502.24,0.00019452,2]
[357963933,1744623043502,-500.0,0.00019452,2]
[357963934,1744623043512,-542.89608322,0.00019452,2]
[357963935,1744623043522,-500.0,0.00019452,2]
[357963936,1744623043532,-500.0,0.00019452,2]
[357963937,1744623043542,-245.49112776,0.00019452,2]
[357963938,1744623043552,-500.0,0.00019452,2]
[357963939,1744623043562,-572.73,0.00019452,2]
[357963940,1744623043572,-448.24,0.00019452,2]
[357963941,1744623043581,-500.0,0.00019452,2]
[357963942,1744623043591,-500.0,0.00019452,2]
[357963943,1744623043601,-500.0,0.00019452,2]
[357963944,1744623043611,-500.0,0.00019452,2]
[357963945,1744623043621,-500.0,0.00019452,2]
[357963946,1744623043630,-157.56,0.00019452,2]
[357963947,1744623043640,-500.0,0.00019452,2]
[357963948,1744623043649,-500.0,0.00019452,2]
[357963949,1744623043658,-500.0,0.00019452,2]
[357963950,1744623043667,-500.0,0.00019452,2]
[357963951,1744623043677,-500.0,0.00019452,2]
[357963952,1744623043686,-502.95613348,0.00019452,2]
[357963953,1744623043695,-500.0,0.00019452,2]
[357963954,1744623043705,-167.84,0.00019452,2]
[357963955,1744623043715,-500.0,0.00019452,2]
[357963956,1744623043724,-500.0,0.00019452,2]
[357963957,1744623043734,-500.0,0.00019452,2]
[357963958,1744623043743,-500.0,0.00019452,2]
[357963959,1744623043753,-500.0,0.00019452,2]
[357963960,1744623043772,-207.73330506,0.00019452,2]
[357963961,1744623043912,-500.0,0.00019178,2]
[357963962,1744623043922,-292.26669494,0.00019452,2]
[357963963,1744623043931,-282.2,0.00019452,2]
[357963964,1744623043940,-500.0,0.00019452,2]
[357963965,1744623043950,-500.0,0.00019452,2]
[357963966,1744623043959,-500.0,0.00019452,2]
[357963967,1744623043968,-500.0,0.00019452,2]
[357963968,1744623043978,-251.01,0.00019452,2]
[357963969,1744623043987,-500.0,0.00019452,2]
[357963970,1744623043996,-500.0,0.00019452,2]
[357963971,1744623044005,-500.0,0.00019452,2]
[357963972,1744623044014,-500.0,0.00019452,2]
[357963973,1744623044023,-500.0,0.00019452,2]
[357963974,1744623044032,-500.0,0.00019452,2]
[357963975,1744623044041,-500.0,0.00019452,2]
[357963976,1744623044052,-500.0,0.00019452,2]
[357963977,1744623044062,-500.0,0.00019452,2]
[357963978,1744623044072,-500.0,0.00019452,2]
[357963979,1744623044082,-500.0,0.00019452,2]
[357963980,1744623044092,-500.0,0.00019452,2]
[357963981,1744623044102,-500.0,0.00019452,2]
[357963982,1744623044113,-500.0,0.00019452,2]
[357963983,1744623044124,-500.0,0.00019452,2]
[357963984,1744623044137,-500.0,0.00019452,2]
[357963985,1744623044149,-500.0,0.00019452,2]
[357963986,1744623044159,-500.0,0.00019452,2]
[357963987,1744623044169,-233.08841201,0.00019452,2]
[357963988,1744623044179,-500.0,0.00019452,2]
[357963989,1744623044189,-500.0,0.00019452,2]
[357963990,1744623044198,-500.0,0.00019452,2]
[357963991,1744623044208,-500.0,0.00019452,2]
[357963992,1744623044218,-500.0,0.00019452,2]
[357963993,1744623044227,-500.0,0.00019452,2]
[357963994,1744623044238,-500.0,0.00019452,2]
[357963995,1744623044247,-500.0,0.00019452,2]
[357963996,1744623044256,-500.0,0.00019452,2]
[357963997,1744623044265,-546.31850816,0.00019452,2]
[357963998,1744623044275,-245.13028586,0.00019452,2]
[357963999,1744623044285,-333.38,0.00019452,2]
[357964000,1744623044294,-500.0,0.00019452,2]
[357964001,1744623044305,-500.0,0.00019452,2]
[357964002,1744623044314,-500.0,0.00019452,2]
[357964003,1744623044324,-500.0,0.00019452,2]
[357964004,1744623044334,-506.46,0.00019452,2]
[357964005,1744623044344,-500.0,0.00019452,2]
[357964006,1744623044354,-500.0,0.00019452,2]
[357964007,1744623044364,-542.94,0.00019452,2]
[357964008,1744623044373,-500.0,0.00019452,2]
[357964009,1744623044383,-351.1,0.00019452,2]
[357964010,1744623044393,-500.0,0.00019452,2]
[357964011,1744623044402,-500.0,0.00019452,2]
[357964012,1744623044412,-500.0,0.00019452,2]
[357964013,1744623044422,-500.0,0.00019452,2]
[357964014,1744623044432,-500.0,0.00019452,2]
[357964015,1744623044442,-500.0,0.00019452,2]
[357964016,1744623044451,-500.0,0.00019452,2]
[357964017,1744623044461,-960.74,0.00019452,2]
[357964018,1744623044471,-570.31,0.00019452,2]
[357964019,1744623044482,-500.0,0.00019452,2]
[357964020,1744623044492,-500.0,0.00019452,2]
[357964021,1744623044502,-462.56,0.00019452,2]
[357964022,1744623044512,-500.0,0.00019452,2]
[357964023,1744623044522,-614.29,0.00019452,2]
[357964024,1744623044532,-500.0,0.00019452,2]
[357964025,1744623044543,-1014.97,0.00019452,2]
[357964026,1744623044553,-31393.23609903,0.00019452,2]
[357964027,1744623044575,-2978.2970217,0.00019452,2]
[357964028,1744623044587,-744.84687927,0.00019452,2]
[357964029,1744623044597,-317.65113806,0.00019452,2]
[357964030,1744623044607,-500.0,0.00019452,2]
[357964031,1744623044617,-1495.34,0.00019452,2]
[357964032,1744623044627,-500.0,0.00019452,2]
[357964033,1744623044637,-500.0,0.00019452,2]
[357964034,1744623044647,-500.0,0.00019452,2]
[357964035,1744623044657,-537.98,0.00019452,2]
[357964036,1744623044667,-500.0,0.00019452,2]
[357964037,1744623044677,-500.0,0.00019452,2]
[357964038,1744623044688,-537.02,0.00019452,2]
[357964039,1744623044698,-500.0,0.00019452,2]
[357964040,1744623044708,-544.28,0.00019452,2]
[357964041,1744623044718,-500.0,0.00019452,2]
[357964042,1744623044727,-430.57,0.00019452,2]
[357964043,1744623044738,-500.0,0.00019452,2]
[357964044,1744623044748,-500.0,0.00019452,2]
[357964045,1744623044758,-500.0,0.00019452,2]
[357964046,1744623044768,-500.0,0.00019452,2]
[357964047,1744623044778,-500.0,0.00019452,2]
[357964048,1744623044790,-803.49,0.00019452,2]
[357964049,1744623044800,-294.21546063,0.00019452,2]
[357964050,1744623044810,-500.0,0.00019452,2]
[357964051,1744623044820,-500.0,0.00019452,2]
[357964052,1744623044830,-500.0,0.00019452,2]
[357964053,1744623044840,-500.0,0.00019452,2]
[357964054,1744623044850,-506.15435221,0.00019452,2]
[357964055,1744623044860,-500.0,0.00019452,2]
[357964056,1744623044869,-440.40168611,0.00019452,2]
[357964057,1744623044879,-179.39370182,0.00019452,2]
[357964058,1744623044888,-500.0,0.00019452,2]
[357964059,1744623044898,-500.0,0.00019452,2]
[357964060,1744623044908,-500.0,0.00019452,2]
[357964061,1744623044918,-500.0,0.00019452,2]
[357964062,1744623044927,-500.0,0.00019452,2]
[357964063,1744623044937,-500.0,0.00019452,2]
[357964064,1744623044946,-767.3,0.00019452,2]
[357964065,1744623044955,-500.0,0.00019452,2]
[357964066,1744623044964,-500.0,0.00019452,2]
[357964067,1744623044974,-500.0,0.00019452,2]
[357964068,1744623044984,-1204.64,0.00019452,2]
[357964069,1744623044993,-527.03,0.00019452,2]
[357964070,1744623045003,-500.0,0.00019452,2]
[357964071,1744623045013,-500.0,0.00019452,2]
[357964072,1744623045023,-500.90230091,0.00019452,2]
[357964073,1744623045032,-500.0,0.00019452,2]
[357964074,1744623045043,-500.0,0.00019452,2]
[357964075,1744623045054,-500.0,0.00019452,2]
[357964076,1744623045063,-500.0,0.00019452,2]
[357964077,1744623045075,-500.0,0.00019452,2]
[357964078,1744623045086,-500.0,0.00019452,2]
[357964079,1744623045096,-500.0,0.00019452,2]
[357964080,1744623045107,-500.0,0.00019452,2]
[357964081,1744623045118,-500.0,0.00019452,2]
[357964082,1744623045128,-500.0,0.00019452,2]
[357964083,1744623045138,-990.55566107,0.00019474,2]
[357964084,1744623045150,-990.55566107,0.00019535,2]
[357964085,1744623045161,-674.38278377,0.00019535,2]
[357964086,1744623045173,-990.55566107,0.00019596,2]
[357964087,1744623045183,-1000.0,0.000196,2]
[357964088,1744623045193,-370.48724767,0.00019609,2]
[357964089,1744623045203,-674.38278377,0.00019626,2]
[357964090,1744623045212,-636.48,0.0001963,2]
[357964091,1744623045221,-990.55566107,0.00019656,2]
[357964092,1744623045231,-359.87807999,0.00019709,2]
[357964093,1744623045241,-990.55566107,0.00019717,2]
[357964094,1744623045251,-674.38278377,0.00019717,2]
[357964095,1744623045261,-500.0,0.00019726,2]
[357964096,1744623045270,-240.21,0.00019726,2]
[357964097,1744623045279,-500.0,0.00019726,2]
[357964098,1744623045288,-316.25,0.00019726,2]
[357964099,1744623045298,-500.0,0.00019726,2]
[357964100,1744623045308,-296.21,0.00019726,2]
[357964101,1744623045317,-500.0,0.00019726,2]
[357964102,1744623045326,-500.0,0.00019726,2]
[357964103,1744623045486,-500.0,0.00019726,2]
[357964104,1744623045521,-541.45,0.00019726,2]
[357964105,1744623045531,-500.0,0.00019726,2]
[357964106,1744623045542,-500.0,0.00019726,2]
[357964107,1744623045552,-375.47,0.00019726,2]
[357964108,1744623045561,-378.97065004,0.00019726,2]
[357964109,1744623045571,-500.0,0.00019726,2]
[357964110,1744623045580,-435.31,0.00019726,2]
[357964111,1744623045590,-500.0,0.00019726,2]
[357964112,1744623045599,-500.0,0.00019726,2]
[357964113,1744623045608,-249.22,0.00019726,2]
[357964114,1744623045618,-500.0,0.00019726,2]
[357964115,1744623045627,-217.09,0.00019726,2]
[357964116,1744623045636,-176.67,0.00019726,2]
[357964117,1744623045646,-497.76301307,0.00019726,2]
[357964118,1744623045655,-500.0,0.00019726,2]
[357964119,1744623045665,-500.0,0.00019726,2]
[357964120,1744623045675,-500.0,0.00019726,2]
[357964121,1744623045684,-249.87917166,0.00019726,2]
[357964122,1744623045694,-500.0,0.00019726,2]
[357964123,1744623045704,-500.0,0.00019726,2]
[357964124,1744623045713,-576.73989761,0.00019726,2]
[357964125,1744623045723,-500.0,0.00019726,2]
[357964126,1744623045734,-504.81,0.00019726,2]
[357964127,1744623045744,-500.0,0.00019726,2]
[357964128,1744623045753,-500.0,0.00019726,2]
[357964129,1744623045763,-500.0,0.00019726,2]
[357964130,1744623045773,-450.43,0.00019726,2]
[357964131,1744623045782,-500.0,0.00019726,2]
[357964132,1744623045792,-500.0,0.00019726,2]
[357964133,1744623045802,-500.0,0.00019726,2]
[357964134,1744623045812,-500.0,0.00019726,2]
[357964135,1744623045821,-500.0,0.00019726,2]
[357964136,1744623045831,-500.0,0.00019726,2]
[357964137,1744623045840,-500.0,0.00019726,2]
[357964138,1744623045849,-500.0,0.00019726,2]
[357964139,1744623045860,-500.0,0.00019726,2]
[357964140,1744623045869,-506.46,0.00019726,2]
[357964141,1744623045879,-500.0,0.00019726,2]
[357964142,1744623045889,-319.31,0.00019726,2]
[357964143,1744623045898,-500.0,0.00019726,2]
[357964144,1744623045907,-500.0,0.00019726,2]
[357964145,1744623045917,-629.1,0.00019726,2]
[357964146,1744623045926,-500.0,0.00019726,2]
[357964147,1744623045935,-960.74,0.00019726,2]
[357964148,1744623045946,-570.31,0.00019726,2]
[357964149,1744623045955,-406.99,0.00019726,2]
[357964150,1744623045965,-196.04925039,0.00019726,2]
[357964151,1744623045975,-500.0,0.00019726,2]
[357964152,1744623045984,-1014.97,0.00019726,2]
[357964153,1744623045993,-35116.38,0.00019726,2]
[357964154,1744623046003,-500.0,0.00019726,2]
[357964155,1744623046012,-1495.34,0.00019726,2]
[357964157,1744623046022,-500.0,0.00019726,2]
[357964158,1744623046031,-500.0,0.00019726,2]
[357964160,1744623046041,-519.32,0.00019726,2]
[357964161,1744623046051,-500.0,0.00019726,2]
[357964162,1744623046060,-500.0,0.00019726,2]
[357964163,1744623046072,-537.02,0.00019726,2]
[357964164,1744623046081,-315.06,0.00019726,2]
[357964165,1744623046091,-554.44,0.00019726,2]
[357964166,1744623046100,-500.0,0.00019726,2]
[357964167,1744623046110,-203.08,0.00019726,2]
[357964168,1744623046119,-500.0,0.00019726,2]
[357964169,1744623046129,-803.49,0.00019726,2]
[357964170,1744623046138,-592.4,0.00019726,2]
[357964171,1744623046149,-500.0,0.00019726,2]
[357964172,1744623046158,-500.0,0.00019726,2]
[357964173,1744623046167,-500.0,0.00019726,2]
[357964174,1744623046176,-500.0,0.00019726,2]
[357964175,1744623046185,-500.0,0.00019726,2]
[357964176,1744623046195,-500.0,0.00019726,2]
[357964177,1744623046204,-500.0,0.00019726,2]
[357964178,1744623046213,-767.3,0.00019726,2]
[357964179,1744623046222,-632.76,0.00019726,2]
[357964180,1744623046231,-500.0,0.00019726,2]
[357964181,1744623046240,-475.84,0.00019726,2]
[357964182,1744623046250,-1204.64,0.00019726,2]
[357964183,1744623046260,-527.03,0.00019726,2]
[357964184,1744623046269,-500.0,0.00019726,2]
[357964185,1744623046278,-500.0,0.00019726,2]
[357964186,1744623046288,-500.0,0.00019726,2]
[357964187,1744623046297,-500.0,0.00019726,2]
[357964188,1744623046307,-254.45499636,0.00019726,2]
[357964189,1744623046317,-1336.46167761,0.00019737,2]
[357964190,1744623046328,-1199.44121366,0.00019761,2]
[357964191,1744623046338,-1336.46167761,0.00019776,2]
[357964192,1744623046348,-990.55566107,0.00019778,2]
[357964193,1744623046358,-1199.44121366,0.00019786,2]
[357964194,1744623046368,-1336.46167761,0.00019794,2]
[357964195,1744623046378,-1199.44121366,0.00019798,2]
[357964196,1744623046387,-1307.0572647,0.00019799,2]
[357964197,1744623046397,-624.18,0.00019799,2]
[357964198,1744623046407,-178.08609034,0.00019799,2]
[357964199,1744623046416,-191.653237,0.00019799,2]
[357964200,1744623046426,-1000.0,0.000198,2]
[357964201,1744623046435,-100857.30836725,0.000198,2]
[357964202,1744623046444,-674.38278377,0.00019809,2]
[357964203,1744623046454,-12500.0,0.00019812,2]
[357964204,1744623046463,-12500.0,0.00019821,2]
[357964205,1744623046473,-12500.0,0.0001983,2]
[357964206,1744623046482,-12500.0,0.00019838,2]
[357964207,1744623046492,-990.55566107,0.00019839,2]
[357964208,1744623046502,-12500.0,0.00019847,2]
[357964209,1744623046511,-12500.0,0.00019856,2]
[357964210,1744623046521,-370.48724768,0.00019859,2]
[357964211,1744623046530,-500.0,0.00019863,2]
[357964212,1744623046540,-500.0,0.00019863,2]
[357964213,1744623046551,-500.0,0.00019863,2]
[357964214,1744623046560,-500.0,0.00019863,2]
[357964215,1744623046570,-500.0,0.00019863,2]
[357964216,1744623046579,-500.0,0.00019863,2]
[357964217,1744623046589,-380.68666675,0.00019863,2]
[357964218,1744623046598,-500.0,0.00019863,2]
[357964219,1744623046608,-500.0,0.00019863,2]
[357964220,1744623046617,-500.0,0.00019863,2]
[357964221,1744623046626,-500.0,0.00019863,2]
[357964222,1744623046635,-500.0,0.00019863,2]
[357964223,1744623046645,-500.0,0.00019863,2]
[357964224,1744623046654,-500.0,0.00019863,2]
[357964225,1744623046663,-500.0,0.00019863,2]
[357964226,1744623046673,-500.0,0.00019863,2]
[357964227,1744623046682,-500.0,0.00019863,2]
[357964228,1744623046691,-500.0,0.00019863,2]
[357964229,1744623046701,-500.0,0.00019863,2]
[357964230,1744623046710,-12500.0,0.00019865,2]
[357964231,1744623046719,-500.0,0.00019873,2]
[357964232,1744623046729,-538.77045901,0.00019873,2]
[357964233,1744623046738,-12500.0,0.00019874,2]
[357964234,1744623046747,-12500.0,0.00019882,2]
[357964235,1744623046756,-12500.0,0.00019891,2]